fUSD/lending_fUSD_20260115
["ID","MTS","AMOUNT","RATE_DAILY","PERIOD"]
[402081747,1768513845620,-1000.0,0.00035534,2]
[402081748,1768513845630,-463.05999061,0.00035534,30]
[402081749,1768513845640,-1000.0,0.00035535,2]
[402081750,1768513845649,-150.0,0.00035558,2]
[402081751,1768513845658,-346.0666153,0.00035567,2]
[402081752,1768513845668,-207.0,0.0003561,10]
[402081753,1768513845681,-151.0,0.00035613,14]
[402081754,1768513845691,-500.0,0.00035615,10]
[402081755,1768513845700,-236.78879281,0.00035615,10]
[402081756,1768513845709,-151.0,0.00035616,10]
[402081758,1768513845720,-500.0,0.00035616,10]
[402081759,1768513845729,-500.0,0.00035616,10]
[402081760,1768513845739,-500.0,0.00035616,10]
[402081761,1768513845749,-500.0,0.00035616,10]
[402081762,1768513845762,-500.0,0.00035616,10]
[402081763,1768513845772,-477.94,0.00035616,120]
[402081765,1768513845781,-500.0,0.00035616,10]
[402081766,1768513845790,-500.0,0.00035616,10]
[402081767,1768513845800,-500.0,0.00035616,10]
[402081768,1768513845809,-413.84136644,0.00035616,10]
[402081769,1768513845819,-500.0,0.00035616,10]
[402081770,1768513845828,-550.64900362,0.00035616,10]
[402081771,1768513845837,-500.0,0.00035616,10]
[402081773,1768513845847,-500.0,0.00035616,10]
[402081774,1768513845856,-500.0,0.00035616,10]
[402081775,1768513845866,-500.0,0.00035616,10]
[402081776,1768513845877,-500.0,0.00035616,10]
[402081777,1768513845886,-500.0,0.00035616,10]
[402081778,1768513845895,-507.72707283,0.00035616,10]
[402081779,1768513845905,-500.0,0.00035616,10]
[402081780,1768513845914,-500.0,0.00035616,10]
[402081781,1768513845923,-506.85240845,0.00035616,10]
[402081782,1768513845933,-500.0,0.00035616,10]
[402081783,1768513845942,-500.0,0.00035616,10]
[402081784,1768513845952,-500.0,0.00035616,10]
[402081785,1768513845962,-500.0,0.00035616,10]
[402081786,1768513845972,-500.0,0.00035616,10]
[402081787,1768513845981,-500.0,0.00035616,10]
[402081788,1768513845991,-500.0,0.00035616,10]
[402081789,1768513846000,-340.0,0.00035616,10]
[402081790,1768513846009,-500.0,0.00035616,10]
[402081791,1768513846019,-500.0,0.00035616,10]
[402081792,1768513846029,-1000.0,0.00035616,120]
[402081793,1768513846038,-1000.0,0.00035616,120]
[402081794,1768513846047,-1000.0,0.00035616,120]
[402081795,1768513846057,-1000.0,0.00035616,120]
[402081796,1768513846067,-500.0,0.00035616,10]
[402081797,1768513846077,-1000.0,0.00035616,120]
[402081798,1768513846087,-652.86,0.00035616,10]
[402081799,1768513846096,-1000.0,0.00035616,120]
[402081800,1768513846107,-500.0,0.00035616,10]
[402081801,1768513846116,-500.0,0.00035616,10]
[402081802,1768513846126,-500.0,0.00035616,10]
[402081803,1768513846136,-174.88550712,0.00035616,10]
[402081804,1768513846145,-500.0,0.00035616,10]
[402081805,1768513846155,-1266.52,0.00035616,10]
[402081806,1768513846164,-892.57,0.00035616,10]
[402081807,1768513846174,-332.08713649,0.00035616,10]
[402081808,1768513846183,-234.46577144,0.00035616,10]
[402081809,1768513846193,-813.29,0.00035616,10]
[402081810,1768513846203,-500.0,0.00035616,10]
[402081811,1768513846213,-500.0,0.00035616,10]
[402081812,1768513846222,-682.77,0.00035616,10]
[402081813,1768513846232,-1119.69,0.00035616,10]
[402081814,1768513846241,-1056.64,0.00035616,10]
[402081815,1768513846251,-606.99432392,0.00035616,10]
[402081816,1768513846260,-500.0,0.00035616,10]
[402081817,1768513846270,-555.68479709,0.00035616,10]
[402081818,1768513846280,-601.79,0.00035616,10]
[402081819,1768513846289,-500.0,0.00035616,10]
[402081820,1768513846303,-500.0,0.00035616,10]
[402081821,1768513846313,-857.68,0.00035616,120]
[402081822,1768513846323,-500.0,0.00035616,10]
[402081823,1768513846332,-500.0,0.00035616,10]
[402081824,1768513846342,-500.0,0.00035616,10]
[402081825,1768513846352,-500.0,0.00035616,10]
[402081826,1768513846361,-500.0,0.00035616,10]
[402081827,1768513846371,-1173.55,0.00035616,10]
[402081828,1768513846381,-649.61,0.00035616,10]
[402081829,1768513846390,-500.0,0.00035616,10]
[402081830,1768513846399,-188.13136343,0.00035616,10]
[402081831,1768513846409,-884.14,0.00035616,10]
[402081832,1768513846418,-500.0,0.00035616,10]
[402081833,1768513846427,-2067.04,0.00035616,10]
[402081834,1768513846437,-500.0,0.00035616,10]
[402081835,1768513846447,-646.07286094,0.00035616,10]
[402081836,1768513846456,-1819.51,0.00035616,10]
[402081837,1768513846466,-500.0,0.00035616,10]
[402081838,1768513846475,-505.04,0.00035616,10]
[402081839,1768513846485,-500.0,0.00035616,10]
[402081840,1768513846495,-811.4,0.00035616,10]
[402081841,1768513846504,-500.0,0.00035616,10]
[402081842,1768513846514,-1253.39,0.00035616,10]
[402081843,1768513846524,-500.0,0.00035616,10]
[402081844,1768513846533,-582.99,0.00035616,10]
[402081845,1768513846542,-500.0,0.00035616,10]
[402081846,1768513846552,-500.0,0.00035616,10]
[402081847,1768513846561,-517.64644068,0.00035616,10]
[402081848,1768513846571,-500.0,0.00035616,10]
[402081849,1768513846581,-535.12,0.00035616,10]
[402081850,1768513846591,-1275.17,0.00035616,10]
[402081851,1768513846601,-500.0,0.00035616,10]
[402081852,1768513846610,-500.0,0.00035616,10]
[402081853,1768513846620,-500.0,0.00035616,10]
[402081854,1768513846629,-637.21848339,0.00035616,10]
[402081855,1768513846639,-589.25949111,0.00035616,10]
[402081856,1768513846648,-500.0,0.00035616,10]
[402081857,1768513846658,-500.0,0.00035616,10]
[402081858,1768513846668,-500.0,0.00035616,10]
[402081859,1768513846678,-506.26948739,0.00035616,10]
[402081860,1768513846688,-500.0,0.00035616,10]
[402081861,1768513846698,-300.33584953,0.00035616,10]
[402081862,1768513846708,-500.0,0.00035616,10]
[402081863,1768513846719,-500.0,0.00035616,10]
[402081864,1768513846728,-500.0,0.00035616,10]
[402081865,1768513846737,-500.0,0.00035616,10]
[402081866,1768513846747,-992.6,0.00035616,10]
[402081867,1768513846758,-1512.3,0.00035616,10]
[402081868,1768513846767,-500.0,0.00035616,10]
[402081869,1768513846777,-528.71,0.00035616,10]
[402081870,1768513846786,-572.39424368,0.00035616,10]
[402081871,1768513846796,-409.05982068,0.00035616,10]
[402081872,1768513846806,-2082.8,0.00035616,10]
[402081873,1768513846815,-500.0,0.00035616,10]
[402081874,1768513846825,-608.64,0.00035616,10]
[402081875,1768513846835,-500.0,0.00035616,10]
[402081876,1768513846845,-500.0,0.00035616,10]
[402081877,1768513846854,-500.0,0.00035616,10]
[402081878,1768513846864,-720.67,0.00035616,10]
[402081879,1768513846873,-500.0,0.00035616,120]
[402081880,1768513846883,-529.55451969,0.00035616,10]
[402081881,1768513846893,-555.47105832,0.00035616,10]
[402081882,1768513846903,-589.51578622,0.00035616,10]
[402081883,1768513846913,-963.63,0.00035616,10]
[402081884,1768513846922,-500.0,0.00035616,10]
[402081885,1768513846932,-591.78584923,0.00035616,10]
[402081886,1768513846942,-500.0,0.00035616,10]
[402081887,1768513846951,-1187.11,0.00035616,10]
[402081888,1768513846960,-500.0,0.00035616,10]
[402081889,1768513846970,-500.0,0.00035616,10]
[402081890,1768513846979,-500.0,0.00035616,10]
[402081891,1768513846989,-354.51195498,0.00035616,10]
[402081892,1768513846999,-500.0,0.00035616,10]
[402081893,1768513847008,-500.0,0.00035616,10]
[402081894,1768513847018,-206.93500616,0.00035616,10]
[402081895,1768513847028,-802.28,0.00035616,10]
[402081896,1768513847039,-500.0,0.00035616,10]
[402081897,1768513847048,-500.0,0.00035616,10]
[402081898,1768513847058,-500.0,0.00035616,10]
[402081899,1768513847068,-728.92,0.00035616,10]
[402081900,1768513847078,-759.55,0.00035616,10]
[402081901,1768513847087,-500.0,0.00035616,10]
[402081902,1768513847097,-500.0,0.00035616,10]
[402081903,1768513847107,-500.0,0.00035616,10]
[402081904,1768513847117,-500.0,0.00035616,10]
[402081905,1768513847126,-500.0,0.00035616,10]
[402081906,1768513847137,-500.0,0.00035616,10]
[402081907,1768513847147,-500.0,0.00035616,10]
[402081908,1768513847157,-500.0,0.00035616,10]
[402081909,1768513847167,-500.0,0.00035616,10]
[402081910,1768513847177,-500.0,0.00035616,10]
[402081911,1768513847187,-675.37,0.00035616,10]
[402081912,1768513847197,-500.0,0.00035616,10]
[402081913,1768513847207,-500.0,0.00035616,10]
[402081914,1768513847217,-1313.38,0.00035616,10]
[402081915,1768513847227,-729.41,0.00035616,10]
[402081916,1768513847237,-747.20812032,0.00035616,7]
[402081917,1768513847247,-1552.11,0.00035616,10]
[402081918,1768513847258,-500.0,0.00035616,10]
[402081919,1768513847269,-690.01,0.00035616,10]
[402081920,1768513847279,-500.0,0.00035616,10]
[402081921,1768513847548,-407.95414934,0.00035616,10]
[402081922,1768513847558,-500.0,0.00035616,10]
[402081923,1768513847567,-555.43820185,0.00035616,10]
[402081924,1768513847576,-1166.43,0.00035616,10]
[402081925,1768513847586,-500.0,0.00035616,10]
[402081926,1768513847594,-500.0,0.00035616,10]
[402081927,1768513847604,-500.0,0.00035616,10]
[402081928,1768513847613,-500.0,0.00035616,10]
[402081929,1768513847622,-500.0,0.00035616,10]
[402081930,1768513847631,-500.0,0.00035616,10]
[402081931,1768513847641,-604.7,0.00035616,10]
[402081932,1768513847650,-1088.41,0.00035616,10]
[402081933,1768513847659,-500.0,0.00035616,10]
[402081934,1768513847668,-500.0,0.00035616,10]
[402081935,1768513847679,-500.0,0.00035616,10]
[402081936,1768513847688,-500.0,0.00035616,10]
[402081937,1768513847698,-778.94,0.00035616,10]
[402081938,1768513847707,-500.0,0.00035616,10]
[402081939,1768513847717,-500.0,0.00035616,10]
[402081940,1768513847726,-604.39926051,0.00035616,10]
[402081941,1768513847736,-500.0,0.00035616,10]
[402081942,1768513847745,-589.6261686,0.00035616,10]
[402081943,1768513847756,-500.0,0.00035616,10]
[402081944,1768513847766,-500.0,0.00035616,10]
[402081945,1768513847775,-500.0,0.00035616,10]
[402081946,1768513847784,-500.0,0.00035616,10]
[402081947,1768513847794,-500.0,0.00035616,10]
[402081948,1768513847804,-500.0,0.00035616,10]
[402081949,1768513847813,-746.02,0.00035616,10]
[402081950,1768513847823,-500.0,0.00035616,10]
[402081951,1768513847834,-500.0,0.00035616,10]
[402081952,1768513847843,-500.0,0.00035616,10]
[402081953,1768513847853,-500.0,0.00035616,10]
[402081954,1768513847862,-500.0,0.00035616,10]
[402081955,1768513847872,-1164.84,0.00035616,10]
[402081956,1768513847882,-844.26,0.00035616,10]
[402081957,1768513847891,-500.0,0.00035616,10]
[402081958,1768513847900,-500.0,0.00035616,10]
[402081959,1768513847910,-500.0,0.00035616,10]
[402081960,1768513847919,-561.57860686,0.00035616,10]
[402081961,1768513847929,-500.0,0.00035616,10]
[402081962,1768513847938,-500.0,0.00035616,10]
[402081963,1768513847948,-500.0,0.00035616,10]
[402081964,1768513847957,-500.0,0.00035616,10]
[402081965,1768513847966,-567.72798585,0.00035616,10]
[402081966,1768513847977,-500.0,0.00035616,10]
[402081967,1768513847987,-715.73,0.00035616,10]
[402081968,1768513847997,-509.76268029,0.00035616,10]
[402081969,1768513848006,-695.12,0.00035616,10]
[402081970,1768513848015,-500.0,0.00035616,10]
[402081971,1768513848024,-500.0,0.00035616,10]
[402081972,1768513848033,-500.0,0.00035616,10]
[402081973,1768513848043,-500.0,0.00035616,10]
[402081974,1768513848053,-692.77,0.00035616,10]
[402081975,1768513848062,-500.0,0.00035616,10]
[402081976,1768513848071,-727.36,0.00035616,10]
[402081977,1768513848081,-500.0,0.00035616,10]
[402081978,1768513848092,-197.674196,0.00035616,10]
[402081979,1768513848102,-500.0,0.00035616,10]
[402081980,1768513848111,-500.0,0.00035616,10]
[402081981,1768513848121,-500.0,0.00035616,10]
[402081982,1768513848131,-500.0,0.00035616,10]
[402081983,1768513848140,-515.07,0.00035616,10]
[402081984,1768513848149,-719.33,0.00035616,10]
[402081985,1768513848158,-407.48345669,0.00035616,10]
[402081986,1768513848167,-500.0,0.00035616,10]
[402081987,1768513848177,-878.7,0.00035616,10]
[402081988,1768513848186,-739.35,0.00035616,10]
[402081989,1768513848195,-520.45,0.00035616,10]
[402081990,1768513848204,-500.0,0.00035616,10]
[402081991,1768513848214,-571.31,0.00035616,10]
[402081992,1768513848224,-500.0,0.00035616,10]
[402081993,1768513848233,-1167.66,0.00035616,10]
[402081994,1768513848243,-500.0,0.00035616,10]
[402081995,1768513848253,-873.26,0.00035616,10]
[402081996,1768513848263,-500.0,0.00035616,10]
[402081997,1768513848273,-423.77711375,0.00035616,10]
[402081998,1768513848282,-500.0,0.00035616,10]
[402081999,1768513848292,-500.0,0.00035616,10]
[402082000,1768513848302,-500.0,0.00035616,10]
[402082001,1768513848311,-690.35,0.00035616,10]
[402082002,1768513848320,-500.0,0.00035616,10]
[402082003,1768513848332,-500.0,0.00035616,10]
[402082004,1768513848342,-556.14194408,0.00035616,10]
[402082005,1768513848351,-500.0,0.00035616,10]
[402082006,1768513848361,-614.20101313,0.00035616,10]
[402082007,1768513848370,-1999.37,0.00035616,10]
[402082008,1768513848380,-500.0,0.00035616,10]
[402082009,1768513848390,-1903.66,0.00035616,10]
[402082010,1768513848399,-754.47,0.00035616,10]
[402082011,1768513848409,-1438.06,0.00035616,10]
[402082012,1768513848419,-500.0,0.00035616,10]
[402082013,1768513848428,-500.0,0.00035616,10]
[402082014,1768513848437,-1430.24,0.00035616,10]
[402082015,1768513848446,-500.0,0.00035616,10]
[402082016,1768513848455,-628.7345828,0.00035616,10]
[402082017,1768513848464,-500.0,0.00035616,10]
[402082018,1768513848473,-405.43845754,0.00035616,10]
[402082019,1768513848482,-500.0,0.00035616,10]
[402082020,1768513848493,-1260.7,0.00035616,10]
[402082021,1768513848502,-500.0,0.00035616,10]
[402082022,1768513848511,-500.0,0.00035616,10]
[402082023,1768513848520,-732.29,0.00035616,10]
[402082024,1768513848529,-861.81,0.00035616,10]
[402082025,1768513848538,-500.0,0.00035616,10]
[402082026,1768513848547,-612.53,0.00035616,10]
[402082027,1768513848557,-500.0,0.00035616,10]
[402082028,1768513848566,-500.0,0.00035616,10]
[402082029,1768513848575,-1034.36,0.00035616,10]
[402082030,1768513848584,-265.01986041,0.00035616,10]
[402082031,1768513848593,-500.0,0.00035616,10]
[402082032,1768513848602,-500.0,0.00035616,10]
[402082033,1768513848611,-500.0,0.00035616,10]
[402082034,1768513848620,-564.83913271,0.00035616,10]
[402082035,1768513848630,-500.0,0.00035616,10]
[402082036,1768513848639,-500.0,0.00035616,10]
[402082037,1768513848649,-1027.17,0.00035616,10]
[402082038,1768513848658,-741.43,0.00035616,10]
[402082039,1768513848667,-580.79002147,0.00035616,10]
[402082040,1768513848677,-500.0,0.00035616,10]
[402082041,1768513848690,-500.0,0.00035616,10]
[402082042,1768513848699,-517.36821405,0.00035616,10]
[402082043,1768513848708,-299.77056116,0.00035616,10]
[402082044,1768513848776,-200.22943884,0.00035616,10]
[402082045,1768513848786,-500.0,0.00035616,10]
[402082046,1768513848795,-205.45408087,0.00035616,10]
[402082047,1768513848806,-294.54591913,0.00035616,10]
[402082048,1768513848815,-559.95697757,0.00035616,10]
[402082049,1768513848824,-1362.75,0.00035616,10]
[402082050,1768513848833,-435.40988472,0.00035616,10]
[402082051,1768513848842,-500.0,0.00035616,10]
[402082052,1768513848851,-534.05,0.00035616,10]
[402082053,1768513848859,-500.0,0.00035616,10]
[402082054,1768513848868,-500.0,0.00035616,10]
[402082055,1768513848877,-500.0,0.00035616,10]
[402082056,1768513848886,-744.83,0.00035616,10]
[402082057,1768513848896,-500.0,0.00035616,10]
[402082058,1768513848905,-500.0,0.00035616,10]
[402082059,1768513848914,-793.95,0.00035616,10]
[402082060,1768513848923,-500.0,0.00035616,10]
[402082061,1768513848932,-871.21,0.00035616,10]
[402082062,1768513848941,-500.0,0.00035616,10]
[402082063,1768513848950,-500.0,0.00035616,10]
[402082064,1768513848959,-500.0,0.00035616,10]
[402082065,1768513848969,-514.97359522,0.00035616,10]
[402082066,1768513848978,-508.7985869,0.00035616,10]
[402082067,1768513848987,-768.07,0.00035616,10]
[402082068,1768513848997,-500.0,0.00035616,10]
[402082069,1768513849006,-1148.61,0.00035616,10]
[402082070,1768513849015,-562.86091424,0.00035616,10]
[402082071,1768513849024,-500.0,0.00035616,10]
[402082072,1768513849033,-1397.38,0.00035616,10]
[402082073,1768513849042,-731.82,0.00035616,10]
[402082074,1768513849051,-500.0,0.00035616,10]
[402082075,1768513849061,-500.0,0.00035616,10]
[402082076,1768513849070,-500.0,0.00035616,10]
[402082077,1768513849079,-500.0,0.00035616,10]
[402082078,1768513849088,-500.0,0.00035616,10]
[402082079,1768513849098,-500.0,0.00035616,10]
[402082080,1768513849107,-500.0,0.00035616,10]
[402082081,1768513849117,-518.36364917,0.00035616,10]
[402082082,1768513849128,-966.25,0.00035616,10]
[402082083,1768513849139,-500.0,0.00035616,10]
[402082084,1768513849148,-773.6,0.00035616,10]
[402082085,1768513849157,-1484.55,0.00035616,10]
[402082086,1768513849166,-629.53,0.00035616,10]
[402082087,1768513849178,-500.0,0.00035616,10]
[402082088,1768513849188,-500.0,0.00035616,10]
[402082089,1768513849197,-500.0,0.00035616,10]
[402082090,1768513849207,-500.0,0.00035616,10]
[402082091,1768513849216,-504.07,0.00035616,10]
[402082092,1768513849225,-500.0,0.00035616,10]
[402082093,1768513849234,-500.0,0.00035616,10]
[402082094,1768513849243,-500.0,0.00035616,10]
[402082095,1768513849253,-1001.35,0.00035616,10]
[402082096,1768513849262,-408.07642773,0.00035616,10]
[402082097,1768513849271,-500.0,0.00035616,10]
[402082098,1768513849280,-500.0,0.00035616,10]
[402082099,1768513849290,-500.0,0.00035616,10]
[402082100,1768513849300,-500.0,0.00035616,10]
[402082101,1768513849310,-633.84,0.00035616,10]
[402082102,1768513849321,-539.35,0.00035616,10]
[402082103,1768513849331,-449.89352511,0.00035616,10]
[402082104,1768513849340,-500.0,0.00035616,10]
[402082105,1768513849350,-408.5750632,0.00035616,10]
[402082106,1768513849359,-500.0,0.00035616,10]
[402082107,1768513849369,-886.58,0.00035616,10]
[402082108,1768513849379,-803.16,0.00035616,10]
[402082109,1768513849388,-151.0,0.00035616,31]
[402082110,1768513849397,-519.16848224,0.00035616,10]
[402082111,1768513849406,-500.0,0.00035616,10]
[402082112,1768513849415,-500.0,0.00035616,10]
[402082113,1768513849424,-500.0,0.00035616,5]
[402082114,1768513849433,-789.85,0.00035616,10]
[402082115,1768513849442,-500.0,0.00035616,10]
[402082116,1768513849451,-500.0,0.00035616,10]
[402082117,1768513849460,-574.0573601,0.00035616,10]
[402082118,1768513849469,-500.0,0.00035616,10]
[402082119,1768513849478,-500.0,0.00035616,10]
[402082120,1768513849487,-500.0,0.00035616,10]
[402082121,1768513849496,-500.0,0.00035616,10]
[402082122,1768513849505,-500.0,0.00035616,10]
[402082123,1768513849515,-1014.72,0.00035616,10]
[402082124,1768513849524,-500.0,0.00035616,10]
[402082125,1768513849533,-500.0,0.00035616,10]
[402082126,1768513849542,-1112.93,0.00035616,10]
[402082127,1768513849551,-500.0,0.00035616,10]
[402082128,1768513849560,-500.0,0.00035616,10]
[402082129,1768513849569,-500.0,0.00035616,10]
[402082130,1768513849578,-893.75,0.00035616,10]
[402082131,1768513849588,-500.0,0.00035616,10]
[402082132,1768513849598,-646.78,0.00035616,10]
[402082133,1768513849611,-500.0,0.00035616,10]
[402082134,1768513849620,-500.0,0.00035616,10]
[402082135,1768513849629,-500.0,0.00035616,10]
[402082136,1768513849638,-500.0,0.00035616,10]
[402082137,1768513849648,-469.50022353,0.00035616,10]
[402082138,1768513849657,-500.0,0.00035616,10]
[402082139,1768513849666,-500.0,0.00035616,10]
[402082140,1768513849677,-500.0,0.00035616,10]
[402082141,1768513849690,-500.0,0.00035616,10]
[402082142,1768513849699,-509.60714484,0.00035616,10]
[402082143,1768513849708,-1857.07,0.00035616,10]
[402082144,1768513849718,-500.0,0.00035616,10]
[402082145,1768513849727,-500.0,0.00035616,10]
[402082146,1768513849736,-500.0,0.00035616,10]
[402082147,1768513849745,-642.12,0.00035616,10]
[402082148,1768513849755,-624.91,0.00035616,10]
[402082149,1768513849764,-124.50832658,0.00035616,10]
[402082150,1768513849965,-375.49167342,0.00035616,10]
[402082151,1768513849974,-500.0,0.00035616,10]
[402082152,1768513849983,-490.55054961,0.00035616,10]
[402082153,1768513850004,-9.44945039,0.00035616,10]
[402082154,1768513850013,-500.0,0.00035616,10]
[402082155,1768513850022,-670.36,0.00035616,10]
[402082156,1768513850031,-1318.92,0.00035616,10]
[402082157,1768513850040,-938.33,0.00035616,10]
[402082158,1768513850049,-500.0,0.00035616,10]
[402082159,1768513850058,-500.0,0.00035616,10]
[402082160,1768513850067,-500.0,0.00035616,10]
[402082161,1768513850076,-500.0,0.00035616,10]
[402082162,1768513850085,-500.0,0.00035616,10]
[402082163,1768513850094,-500.0,0.00035616,10]
[402082164,1768513850103,-500.0,0.00035616,10]
[402082165,1768513850112,-559.89629772,0.00035616,10]
[402082166,1768513850121,-970.67,0.00035616,10]
[402082167,1768513850131,-1799.55,0.00035616,10]
[402082168,1768513850140,-500.0,0.00035616,10]
[402082169,1768513850150,-500.0,0.00035616,10]
[402082170,1768513850159,-500.0,0.00035616,10]
[402082171,1768513850168,-313.19998087,0.00035616,10]
[402082172,1768513850178,-500.0,0.00035616,10]
[402082173,1768513850188,-1338.31,0.00035616,10]
[402082174,1768513850197,-500.0,0.00035616,10]
[402082175,1768513850207,-500.0,0.00035616,120]
[402082176,1768513850218,-476.91963711,0.00035616,10]
[402082177,1768513850228,-682.99,0.00035616,10]
[402082178,1768513850238,-500.0,0.00035616,10]
[402082179,1768513850248,-500.0,0.00035616,10]
[402082180,1768513850258,-503.93446685,0.00035616,10]
[402082181,1768513850269,-500.0,0.00035616,10]
[402082182,1768513850280,-657.28,0.00035616,10]
[402082183,1768513850290,-519.07564666,0.00035616,10]
[402082184,1768513850299,-235.48063072,0.00035616,10]
[402082185,1768513850310,-715.54,0.00035616,10]
[402082186,1768513850319,-500.0,0.00035616,10]
[402082187,1768513850328,-734.07,0.00035616,10]
[402082188,1768513850338,-500.0,0.00035616,10]
[402082189,1768513850348,-500.0,0.00035616,10]
[402082190,1768513850357,-528.15,0.00035616,10]
[402082191,1768513850367,-500.0,0.00035616,10]
[402082192,1768513850377,-1183.44943311,0.00035616,2]
[402082193,1768513850391,-58.46056689,0.00035616,2]
[402082194,1768513850401,-500.0,0.00035616,10]
[402082195,1768513850412,-1118.63,0.00035616,10]
[402082196,1768513850422,-232.59943311,0.00035616,10]
[402082197,1768513850434,-296.30056689,0.00035616,10]
[402082198,1768513850445,-971.52607792,0.00035616,10]
[402082199,1768513850456,-41.66392208,0.00035616,10]
[402082200,1768513850467,-151.0,0.00035616,31]
[402082201,1768513850478,-500.0,0.00035616,10]
[402082202,1768513850489,-1885.7,0.00035616,10]
[402082203,1768513850500,-500.0,0.00035616,10]
[402082204,1768513850510,-561.49,0.00035616,10]
[402082205,1768513850519,-500.0,0.00035616,10]
[402082206,1768513850529,-500.0,0.00035616,10]
[402082207,1768513850539,-500.0,0.00035616,10]
[402082208,1768513850548,-500.0,0.00035616,10]
[402082209,1768513850558,-500.0,0.00035616,10]
[402082210,1768513850570,-500.0,0.00035616,10]
[402082211,1768513850581,-1508.19,0.00035616,10]
[402082212,1768513850591,-500.0,0.00035616,10]
[402082213,1768513850601,-1625.82669016,0.00035616,10]
[402082214,1768513850613,-408.32330984,0.00035616,10]
[402082215,1768513850623,-500.0,0.00035616,10]
[402082216,1768513850633,-157.08168986,0.00035616,10]
[402082217,1768513850644,-363.84831014,0.00035616,10]
[402082218,1768513850654,-1331.45,0.00035616,10]
[402082219,1768513850664,-500.0,0.00035616,10]
[402082220,1768513850673,-500.0,0.00035616,10]
[402082221,1768513850685,-1524.98,0.00035616,10]
[402082222,1768513850694,-563.32,0.00035616,10]
[402082223,1768513850703,-249.8869682,0.00035616,10]
[402082224,1768513850712,-564.79,0.00035616,10]
[402082225,1768513850723,-500.0,0.00035616,10]
[402082226,1768513850731,-500.0,0.00035616,10]
[402082227,1768513850740,-500.0,0.00035616,10]
[402082228,1768513850750,-682.41,0.00035616,10]
[402082229,1768513850760,-506.29200188,0.00035616,10]
[402082230,1768513850768,-500.0,0.00035616,10]
[402082231,1768513850778,-607.52,0.00035616,10]
[402082232,1768513850787,-763.73,0.00035616,10]
[402082233,1768513850796,-500.0,0.00035616,10]
[402082234,1768513850805,-500.0,0.00035616,10]
[402082235,1768513850815,-500.0,0.00035616,10]
[402082236,1768513850823,-500.0,0.00035616,10]
[402082237,1768513850833,-151.0,0.00035616,31]
[402082238,1768513850842,-151.0,0.00035616,31]
[402082239,1768513850851,-96.40869311,0.00035616,10]
[402082240,1768513850863,-403.59130689,0.00035616,10]
[402082241,1768513850872,-608.86,0.00035616,10]
[402082242,1768513850882,-500.0,0.00035616,10]
[402082243,1768513850891,-935.66,0.00035616,10]
[402082244,1768513850901,-500.0,0.00035616,10]
[402082245,1768513850910,-969.94,0.00035616,10]
[402082246,1768513850919,-469.88624323,0.00035616,10]
[402082247,1768513850929,-512.62541215,0.00035616,10]
[402082248,1768513850939,-676.07,0.00035616,10]
[402082249,1768513850949,-563.25,0.00035616,10]